bitfinex/quotes_BTCUSD_20251226
["timestamp","ask_amount","ask_price","bid_price","bid_amount"]
[1766762967040,0.01168,87040.0,87020.0,0.66566639]
[1766762967250,0.01168,87040.0,87021.0,0.02616249]
[1766762967466,0.01168,87040.0,87026.0,0.12852659]
[1766762967736,0.07329,87046.0,87026.0,0.07101154]
[1766762967952,0.06891097,87069.0,87026.0,0.07101154]
[1766762967953,0.046,87064.0,87046.0,0.000547]
[1766762968079,0.08497,87063.0,87046.0,0.000547]
[1766762968277,0.08497,87063.0,87040.0,0.66566639]
[1766762968484,0.07329,87061.0,87040.0,0.66566639]
[1766762968681,0.07329,87061.0,87041.0,0.12852659]
[1766762968682,0.08497,87061.0,87041.0,0.12852659]
[1766762968884,0.000549,87041.0,87030.0,0.66566639]
[1766762969094,0.000549,87041.0,87017.0,0.04]
[1766762969095,0.00010762,87041.0,87020.0,0.66566639]
[1766762969295,0.00010762,87041.0,87028.0,0.01168]
[1766762969609,0.00010762,87041.0,87020.0,0.66566639]
[1766762969830,0.08493,87040.0,87012.0,0.12852659]
[1766762970343,0.08493,87040.0,87013.0,0.18598918]
[1766762970509,0.08493,87040.0,87020.0,0.66566639]
[1766762970879,0.08493,87040.0,87013.0,0.12852659]
[1766762971277,0.07329,87039.0,87011.0,0.12852659]
[1766762971481,0.0847791,87039.0,87012.0,0.12852659]
[1766762971685,0.07329,87036.0,86998.0,0.01149451]
[1766762971899,0.07329,87034.0,87010.0,0.12852659]
[1766762972101,0.07329,87032.0,87010.0,0.12852659]
[1766762972328,0.07329,87030.0,87010.0,0.12852659]
[1766762972534,0.01164,87031.0,86999.0,0.04403328]
[1766762972535,0.07329,87028.0,86999.0,0.0325389]
[1766762972964,0.07329,87028.0,87006.0,0.12852659]
[1766762973189,0.07329,87028.0,87006.0,0.14667873]
[1766762973850,0.07329,87024.0,87006.0,0.01815214]
[1766762974049,0.07329,87022.0,87006.0,0.01815214]
[1766762974205,0.07329,87020.0,86992.0,0.12852659]
[1766762974406,0.07329,87020.0,86996.0,0.12852659]
[1766762975030,0.01164,87019.0,87000.0,0.66566639]
[1766762975206,0.07329,87036.0,87010.0,0.12852659]
[1766762975412,0.07329,87034.0,87010.0,0.79419298]
[1766762975650,0.07329,87034.0,87010.0,0.12852659]
[1766762975988,0.08493,87033.0,87010.0,0.79419298]
[1766762976198,0.084381,87033.0,87010.0,0.79419298]
[1766762976750,0.084381,87033.0,87010.0,0.80568591]
[1766762976953,0.084381,87033.0,87010.0,0.79419298]
[1766762977748,0.084381,87033.0,87010.0,0.12852659]
[1766762977978,0.084381,87033.0,87010.0,0.58219827]
[1766762978583,0.084381,87033.0,87010.0,0.5936912]
[1766762978804,0.084381,87033.0,87010.0,0.58219827]
[1766762979030,0.072741,87033.0,87010.0,0.58219827]
[1766762979238,0.01164,87032.0,87010.0,0.58219827]
[1766762980787,0.01164,87032.0,87011.0,0.12852659]
[1766762982705,0.45367168,87030.0,86993.0,0.01149517]
[1766762982945,0.02313002,87032.0,86993.0,0.01149517]
[1766762982946,0.000549,87011.0,87006.0,0.12852659]
[1766762983245,0.07329,87029.0,87006.0,0.12852659]
[1766762983246,0.01164,87014.0,87006.0,0.12852659]
[1766762983993,0.01164,87014.0,87007.0,0.12852659]
[1766762984511,0.001099,87007.0,87006.0,0.00035894]
[1766762984860,0.0712,87019.0,87006.0,0.00035894]
[1766762984861,0.01164,87011.0,87006.0,0.00035894]
[1766762985043,0.01164,87021.0,87009.0,0.12852659]
[1766762985248,0.01164,87023.0,87010.0,0.01403793]
[1766762985450,0.01164,87024.0,87010.0,0.46770961]
[1766762987012,0.01164,87024.0,87010.0,0.01403793]
[1766762987363,0.0712,87023.0,87010.0,0.01403793]
[1766762987587,0.01164,87023.0,87011.0,0.12797759]
[1766762987815,0.0712,87035.0,87011.0,0.12797759]
[1766762988060,0.01164,87031.0,87020.0,0.45367168]
[1766762989427,0.01164,87031.0,87011.0,0.12797759]
[1766762989855,0.01164,87031.0,87016.0,0.01149213]
[1766762990054,0.01164,87034.0,87031.0,0.000549]
[1766762990256,2.38e-06,87037.0,87031.0,0.000549]
[1766762990416,2.38e-06,87037.0,87031.0,0.01164]
[1766762990821,2.38e-06,87037.0,87030.0,0.01164]
[1766762991650,2.38e-06,87037.0,87026.0,0.01164]
[1766762991852,2.38e-06,87037.0,87028.0,0.12852659]
[1766762992564,2.38e-06,87037.0,87029.0,0.12852659]
[1766762992769,0.00055,87029.0,87024.0,0.01164]
[1766762992966,0.00055,87029.0,87027.0,0.12852659]
[1766762993171,2.38e-06,87037.0,87028.0,0.01401666]
[1766762993688,2.38e-06,87037.0,87024.0,0.01164]
[1766762993891,2.38e-06,87037.0,87027.0,0.12852659]
[1766762994092,2.38e-06,87037.0,87025.0,0.12852659]
[1766762994472,2.38e-06,87037.0,87020.0,0.45367168]
[1766762994679,2.38e-06,87037.0,87026.0,0.12852659]
[1766762994881,2.38e-06,87037.0,87027.0,0.01285266]
[1766762995443,2.38e-06,87037.0,87027.0,0.46652434]
[1766762995631,2.38e-06,87038.0,87028.0,0.12852659]
[1766762995999,0.07257238,87038.0,87027.0,0.01285266]
[1766762996596,0.07257238,87038.0,87018.0,0.01164]
[1766762998307,0.01041324,87037.0,87020.0,0.45367168]
[1766762998509,0.07257238,87038.0,87020.0,0.45367168]
[1766762998929,2.38e-06,87038.0,87025.0,0.12852659]
[1766762999557,0.07257,87050.0,87028.0,0.45367168]
[1766762999706,0.02205667,87049.0,87028.0,0.45367168]
[1766762999881,0.01164,87048.0,87028.0,0.45367168]
[1766763000085,0.07257,87047.0,87026.0,0.01164]
[1766763000294,0.07257,87047.0,87010.0,0.01149293]
[1766763000295,0.07257,87047.0,87020.0,0.45367168]
[1766763000509,0.07257,87047.0,87025.0,0.12852659]
[1766763000711,0.01164,87048.0,86992.0,0.12852659]
[1766763000712,0.01149015,87031.0,86992.0,0.12852659]
[1766763000914,0.07257,87019.0,86986.0,0.04596]
[1766763001126,0.07257,87019.0,86999.0,0.01164]
[1766763001300,0.07257,87036.0,87019.0,0.000549]
[1766763001531,0.08421,87035.0,87019.0,0.000549]
[1766763001765,0.04596,87046.0,87026.0,0.01149081]
[1766763001766,0.02400001,87045.0,87026.0,0.01149081]
[1766763001971,0.07257,87046.0,87035.0,0.58274827]
[1766763002174,0.02400001,87054.0,87035.0,0.00055]
[1766763002175,0.07257,87053.0,87035.0,0.00055]
[1766763002396,0.07257,87053.0,87021.0,0.12852659]
[1766763002397,0.07257,87053.0,87026.0,0.01164]
[1766763002860,0.07257,87053.0,87010.0,0.01149293]
[1766763002861,0.07257,87039.0,86998.0,0.06896699]
[1766763003063,0.07257,87039.0,87011.0,0.12852659]
[1766763003064,0.07257,87037.0,87011.0,0.12852659]
[1766763003556,0.07257,87037.0,87010.0,0.45367168]
[1766763003557,0.07257,87020.0,86981.0,0.05748376]
[1766763003757,0.07257,87018.0,86992.0,0.12852659]
[1766763006067,0.07257,87018.0,86993.0,0.01149517]
[1766763006271,0.07257,87018.0,86992.0,0.12852659]
[1766763006528,0.07257,87018.0,86992.0,0.14002189]
[1766763006752,0.07257,87035.0,87008.0,0.45367168]
[1766763006951,0.07257,87033.0,87006.0,0.12852659]
[1766763007153,0.07257,87029.0,87006.0,0.12852659]
[1766763007309,0.07257,87019.0,86993.0,0.01930029]
[1766763007628,0.07257,87017.0,86995.0,0.01164]
[1766763007787,0.07257,87017.0,86993.0,0.01930029]
[1766763007788,0.07257,87014.0,86993.0,0.01930029]
[1766763008218,0.07257,87014.0,86992.0,0.01164]
[1766763008420,0.07257,87014.0,86980.0,0.45367168]
[1766763008421,0.07257,87014.0,86989.0,0.01164]
[1766763008579,0.07257,87014.0,86992.0,0.12852659]
[1766763009202,0.46516329,87020.0,86989.0,0.01164]
[1766763009203,0.01164,87013.0,86989.0,0.01164]
[1766763009402,0.07257,87009.0,86984.0,0.01164]
[1766763009623,0.07257,87009.0,86992.0,0.12852659]
[1766763009825,0.01164,87008.0,86992.0,0.12852659]
[1766763010022,0.010541,87008.0,86985.0,0.01401666]
[1766763010338,0.083111,87008.0,86985.0,0.01401666]
[1766763010639,0.083111,87008.0,86992.0,0.12852659]
[1766763011231,0.07257,87029.0,86998.0,0.45367168]
[1766763011467,0.046,87023.0,86994.0,0.01164]
[1766763011680,0.07257,87022.0,86994.0,0.01164]
[1766763011883,0.05749121,87023.0,86992.0,0.12852659]
[1766763011884,0.07257,87019.0,86992.0,0.12852659]
[1766763012021,0.45367168,87020.0,86985.0,0.00035894]
[1766763012022,0.07257,87013.0,86993.0,0.01401666]
[1766763012222,0.07257,87013.0,86994.0,0.12852659]
[1766763012542,0.07257,87013.0,86987.0,0.01164]
[1766763012722,0.07257,87013.0,86993.0,0.12852659]
[1766763012930,0.07257,87013.0,86987.0,0.01164]
[1766763013125,0.01149398,87002.0,86985.0,0.00035894]
[1766763013327,0.01164,87018.0,86943.0,0.1312]
[1766763013328,0.07257,86986.0,86945.0,0.01150152]
[1766763013549,0.05764,87001.0,86945.0,0.01150152]
[1766763013550,0.07257,86979.0,86958.0,0.12852659]
[1766763014621,0.07257,86979.0,86960.0,0.45367168]
[1766763016459,0.07257,86979.0,86959.0,0.12852659]
[1766763016673,0.07274,86978.0,86940.0,0.45367168]
[1766763016880,0.07274,86976.0,86946.0,0.01164]
[1766763017102,0.07274,86976.0,86950.0,0.45367168]
[1766763017339,0.07274,86976.0,86958.0,0.12852659]
[1766763017575,0.06897503,86988.0,86958.0,0.12852659]
[1766763017576,0.07274,86974.0,86958.0,0.12852659]
[1766763017775,0.07274,86974.0,86950.0,0.45367168]
[1766763017925,0.07274,86974.0,86946.0,0.01164]
[1766763017926,0.000741,86958.0,86946.0,0.01164]
[1766763018120,0.02975165,87005.0,86948.0,0.58219827]
[1766763018367,0.07274,86983.0,86962.0,0.12852659]
[1766763018577,0.01164,86982.0,86962.0,0.12852659]
[1766763018752,0.01164,86982.0,86948.0,0.01164]
[1766763018753,0.07274,86973.0,86948.0,0.01164]
[1766763018948,0.07274,86971.0,86949.0,0.12852659]
[1766763019185,0.07274,86971.0,86950.0,0.46653511]
[1766763019735,0.01164,86972.0,86950.0,0.46653511]
[1766763019736,0.01149914,86963.0,86950.0,0.46653511]
[1766763019945,0.07274,86961.0,86950.0,0.01286343]
[1766763020151,0.07274,86961.0,86945.0,0.00010771]
[1766763020395,0.07274,86961.0,86946.0,0.12852659]
[1766763020604,0.01164,86977.0,86963.0,0.01149914]
[1766763020823,0.07274,86989.0,86970.0,0.45367168]
[1766763021036,0.01164,86983.0,86974.0,0.12852659]
[1766763021570,0.011091,86983.0,86974.0,0.12852659]
[1766763022313,0.011091,86983.0,86974.0,0.1286343]
[1766763022915,0.00044129,86974.0,86960.0,0.45367168]
[1766763023130,0.07274,86982.0,86964.0,0.12852659]
[1766763023335,0.07274,86982.0,86970.0,0.45367168]
[1766763023535,0.072633,86982.0,86970.0,0.45367168]
[1766763024143,0.01164,86981.0,86970.0,0.45367168]
[1766763024340,0.01164,86981.0,86960.0,0.45377943]
[1766763024341,0.000549,86970.0,86960.0,0.45377943]
[1766763024712,0.07274,86980.0,86960.0,0.45377943]
[1766763026584,0.08423689,86980.0,86960.0,0.00010775]
[1766763026902,0.07274,86980.0,86960.0,0.45377943]
[1766763027441,0.07274,86978.0,86960.0,0.45377943]
[1766763027645,0.01164,86979.0,86961.0,0.12852659]
[1766763027848,0.07274,86978.0,86961.0,0.12852659]
[1766763028055,0.01164,86977.0,86961.0,0.12852659]
[1766763028271,0.000124,86982.0,86960.0,0.45377943]
[1766763028272,0.07274,86975.0,86960.0,0.45377943]
[1766763028492,0.07274,86975.0,86961.0,0.12852659]
[1766763030533,0.01164,86975.0,86961.0,0.12852659]
[1766763030732,0.01164,86976.0,86961.0,0.12852659]
[1766763031172,0.01164,86976.0,86960.0,0.00010775]
[1766763031173,0.08438,86976.0,86960.0,0.00010775]
[1766763031384,0.08438,86976.0,86961.0,0.12852659]
[1766763032332,0.08438,86976.0,86960.0,0.00010775]
[1766763033355,0.07274,86959.0,86938.0,0.01150245]
[1766763033564,0.000107,86960.0,86950.0,0.12852659]
[1766763033768,0.000107,86960.0,86951.0,0.01285266]
[1766763033967,0.01164,86963.0,86951.0,0.01285266]
[1766763034974,0.08438,86963.0,86950.0,0.00010769]
[1766763035350,0.01149689,86980.0,86950.0,0.00010769]
[1766763035351,0.45367168,86980.0,86951.0,0.12852659]
[1766763035552,0.07274,86981.0,86960.0,0.45367168]
[1766763035791,0.01164,86980.0,86966.0,0.12852659]
[1766763036195,0.07274,86979.0,86966.0,0.12852659]
[1766763036395,0.01164,86978.0,86966.0,0.12852659]
[1766763036981,0.08438,86978.0,86966.0,0.12852659]
[1766763037374,0.08438,86978.0,86967.0,0.01285266]
[1766763037622,0.07274,86978.0,86967.0,0.01285266]
[1766763037825,0.01164,86977.0,86967.0,0.01285266]
[1766763038133,0.011091,86977.0,86967.0,0.01285266]
[1766763038334,0.011091,86977.0,86953.0,0.01150046]
[1766763038562,0.011091,86977.0,86965.0,0.12852659]
[1766763038966,0.000124,86982.0,86970.0,0.01149821]
[1766763039120,0.07274,87000.0,86982.0,0.000124]
[1766763039325,0.08438,87000.0,86983.0,0.01286506]
[1766763039546,0.08438,87000.0,86984.0,0.12852659]
[1766763039956,0.07274,87011.0,87000.0,0.000426]
[1766763040153,0.07274,87027.0,87000.0,0.66660744]
[1766763040307,0.07274,87025.0,87001.0,0.01149412]
[1766763040507,0.07274,87025.0,87012.0,0.12852659]
[1766763040712,0.07274,87037.0,87012.0,0.12852659]
[1766763040968,0.07284766,87037.0,87026.0,0.12852659]
[1766763041179,0.07284766,87037.0,87027.0,0.01239701]
[1766763041958,0.00010766,87037.0,87027.0,0.01239701]
[1766763042157,0.01164,87041.0,87027.0,0.01239701]
[1766763042364,0.01164,87041.0,87027.0,0.01250467]
[1766763042590,0.07274,87052.0,87030.0,0.66618144]
[1766763042764,0.07274,87052.0,87040.0,0.12852659]
[1766763043144,0.07274,87052.0,87031.0,0.01164]
[1766763043317,0.07274,87052.0,87032.0,0.01164]
[1766763043477,0.01164,87056.0,87027.0,0.00010766]
[1766763043478,0.000549,87032.0,87027.0,0.00010766]
[1766763043692,0.07316,87031.0,87027.0,6.6e-07]
[1766763044413,0.07316,87031.0,86993.0,0.01149517]
[1766763044414,0.06869,87023.0,86986.0,0.046]
[1766763044590,0.06869,87021.0,86990.0,0.01164]
[1766763044794,0.06869,87021.0,86998.0,0.12852659]
[1766763045067,0.06869,87021.0,87000.0,0.66618144]
[1766763045214,0.06869,87021.0,86999.0,0.01164]
[1766763045378,0.01164,87020.0,86999.0,0.01164]
[1766763045584,0.06869,87041.0,87020.0,0.000107]
[1766763045784,0.06869,87035.0,87020.0,0.000107]
[1766763046001,0.06869,87035.0,87002.0,0.01149398]
[1766763046235,0.06869,87035.0,87012.0,0.12852659]
[1766763046438,0.06869,87035.0,87006.0,0.01149346]
[1766763046737,0.06869,87035.0,87012.0,0.12852659]
[1766763047140,0.06869,87035.0,87003.0,0.01164]
[1766763047141,0.06869,87033.0,87003.0,0.01164]
[1766763047840,0.06869,87033.0,87012.0,0.12852659]
[1766763048402,0.06869,87033.0,87013.0,0.01209115]
[1766763048629,0.00025234,87045.0,87013.0,0.01209115]
[1766763048630,0.00025234,87045.0,87033.0,0.000107]
[1766763048836,0.06869,87058.0,87041.0,0.01148883]
[1766763049036,0.046,87065.0,87041.0,0.01148883]
[1766763049037,0.01164,87062.0,87041.0,0.01148883]
[1766763049239,0.01164,87062.0,87042.0,0.01164]
[1766763049445,0.01164,87062.0,87046.0,0.01148817]
[1766763049641,0.01164,87064.0,87062.0,0.000107]
[1766763049934,0.01174766,87064.0,87062.0,0.000107]
[1766763050135,0.01174766,87064.0,87031.0,0.01164]
[1766763050136,0.06869,87063.0,87031.0,0.01164]
[1766763050557,0.06869,87055.0,87031.0,0.01164]
[1766763050909,0.66618144,87060.0,87027.0,0.01164]
[1766763050910,0.06869,87053.0,87027.0,0.01164]
[1766763051089,0.06869,87053.0,87030.0,0.12852659]
[1766763051645,0.06869,87053.0,87030.0,0.79470803]
[1766763051864,0.06869,87053.0,87030.0,0.12852659]
[1766763052090,0.01164,87054.0,87030.0,0.14001688]
[1766763052325,0.01164,87054.0,87034.0,0.01148976]
[1766763052824,0.01164,87060.0,87044.0,0.12852659]
[1766763053032,0.000549,87044.0,87021.0,0.01149147]
[1766763053254,0.06869,87053.0,87031.0,0.12852659]
[1766763053455,0.06869,87053.0,87032.0,0.01164]
[1766763053625,0.06869,87051.0,87016.0,0.046]
[1766763053932,0.06869,87047.0,87026.0,0.12852659]
[1766763054149,0.06869,87047.0,87026.0,0.14016659]
[1766763054745,0.01164,87055.0,87047.0,0.000549]
[1766763054887,0.01164,87055.0,87040.0,0.12852659]
[1766763055246,0.00025231,87053.0,87040.0,0.12852659]
[1766763055601,0.06869,87060.0,87053.0,0.00024969]
[1766763056914,0.06869,87060.0,87041.0,0.12852659]
[1766763057347,0.06869,87060.0,87038.0,0.01164]
[1766763057547,0.06869,87060.0,87041.0,0.12852659]
[1766763057916,0.06869,87059.0,87041.0,0.01164]
[1766763058116,0.00025227,87061.0,87042.0,0.12852659]
[1766763058968,0.00025227,87061.0,87042.0,0.12833808]
[1766763059601,2.7e-07,87061.0,87042.0,0.12833808]
[1766763059816,0.0002,87070.0,87056.0,0.12852659]
[1766763060225,0.06530779,87071.0,87056.0,0.12852659]
[1766763060390,0.06521279,87071.0,87056.0,0.12852659]
[1766763061004,0.06869,87083.0,87056.0,0.12852659]
[1766763061204,0.06869,87083.0,87057.0,0.00059805]
[1766763061389,0.06869,87081.0,87056.0,0.12852659]
[1766763061591,0.000549,87056.0,87051.0,0.01164]
[1766763061815,0.06869,87067.0,87051.0,0.00010766]
[1766763062017,0.06869,87065.0,87051.0,0.00010766]
[1766763062212,0.06869,87060.0,87029.0,0.04596]
[1766763062416,0.06879758,87060.0,87040.0,0.12852659]
[1766763062678,0.06879758,87060.0,87041.0,0.01164]
[1766763063111,0.06879758,87060.0,87026.0,0.12852659]
[1766763063112,0.06869,87058.0,87026.0,0.12852659]
[1766763063318,0.06869,87058.0,87041.0,0.12852659]
[1766763064196,0.06869,87058.0,87040.0,0.01164]
[1766763064613,0.06869,87058.0,87040.0,0.011198]
[1766763064739,0.08017659,87058.0,87040.0,0.011198]
[1766763064946,0.06869,87058.0,87040.0,0.011198]
[1766763065660,0.08017659,87058.0,87040.0,0.011198]
[1766763065860,0.06869,87049.0,87018.0,0.04596]
[1766763066068,0.06869,87049.0,87032.0,0.12852659]
[1766763067474,0.0398779,87088.0,87032.0,0.12852659]
[1766763067475,0.01164,87058.0,87046.0,0.0465766]
[1766763067673,0.40678395,87078.0,87046.0,0.0465766]
[1766763067674,0.06869,87086.0,87057.0,0.01148672]
[1766763067920,0.08033,87085.0,87078.0,0.11688659]
[1766763068133,0.01272804,87098.0,87067.0,0.01164]
[1766763068472,0.06869,87095.0,87078.0,0.12852659]
[1766763068644,0.01272804,87098.0,87095.0,0.000549]
[1766763068859,0.01272804,87098.0,87079.0,0.01164]
[1766763069015,0.01283568,87098.0,87079.0,0.01164]
[1766763069422,0.0002521,87087.0,87078.0,0.12852659]
[1766763069796,0.05741863,87080.0,87040.0,0.67767041]
[1766763069997,0.00055,87078.0,87065.0,0.12852659]
[1766763070345,0.06869,87084.0,87066.0,0.01164]
[1766763070796,0.06869,87084.0,87043.0,0.01148857]
[1766763070797,0.06869,87077.0,87049.0,0.01164]
[1766763071073,0.06869,87092.0,87077.0,0.000549]
[1766763071225,0.01164,87088.0,87077.0,0.000549]
[1766763071425,0.01164,87088.0,87067.0,0.11688659]
[1766763071843,0.01164,87088.0,87068.0,0.01164]
[1766763072042,0.06869,87078.0,87059.0,0.01164]
[1766763072667,0.01164,87091.0,87065.0,0.12852659]
[1766763072869,0.06869,87089.0,87078.0,0.00024902]
[1766763073188,0.66618144,87090.0,87063.0,0.01164]
[1766763073189,0.06869,87084.0,87063.0,0.01164]
[1766763073340,0.06869,87079.0,87063.0,0.01164]
[1766763073548,0.06869,87079.0,87066.0,0.12852659]
[1766763073733,0.01164,87091.0,87066.0,0.12852659]
[1766763074527,0.08416,87091.0,87066.0,0.12852659]
[1766763075410,0.02431699,87098.0,87081.0,0.12852659]
[1766763075411,0.01283568,87098.0,87081.0,0.12852659]
[1766763075538,0.01,87100.0,87082.0,0.01164]
[1766763075761,0.01,87100.0,87082.0,0.01174764]
[1766763076200,0.01164,87111.0,87096.0,0.12852659]
[1766763076391,0.0002,87117.0,87096.0,0.12852659]
[1766763077846,0.07252,87116.0,87082.0,0.00010764]
[1766763077969,0.07252,87112.0,87082.0,0.00010764]
[1766763078173,0.0114796,87111.0,87082.0,0.00010764]
[1766763078394,0.66618144,87100.0,87083.0,0.01164]
[1766763078767,0.0002,87117.0,87095.0,0.12852659]
[1766763079333,0.07272,87117.0,87095.0,0.12852659]
[1766763080310,0.07272,87117.0,87096.0,0.01164]
[1766763080506,0.66618144,87110.0,87096.0,0.01164]
[1766763080708,0.07272,87117.0,87096.0,0.01164]
[1766763080916,0.07272,87117.0,87095.0,0.12852659]
[1766763081152,0.07272,87117.0,87096.0,0.01164]
[1766763081358,0.67765854,87130.0,87096.0,0.01164]
[1766763081558,0.66618144,87120.0,87095.0,0.12852659]
[1766763081759,0.07252,87124.0,87095.0,0.12852659]
[1766763081966,0.01037381,87123.0,87096.0,0.01164]
[1766763082167,0.66618144,87120.0,87096.0,0.01164]
[1766763082940,0.08416,87119.0,87095.0,0.12852659]
[1766763083234,0.08288999,87118.0,87095.0,0.12852659]
[1766763083469,0.01164,87119.0,87048.0,0.54603839]
[1766763083470,0.07252,87109.0,87096.0,0.12797759]
[1766763083645,0.01164,87119.0,87097.0,0.01164]
[1766763083845,0.07252,87120.0,87097.0,0.01164]
[1766763083846,0.07252,87120.0,87099.0,0.01148118]
[1766763084073,0.40694,87138.0,87120.0,0.000549]
[1766763084074,0.07272,87133.0,87120.0,0.000549]
[1766763084437,0.07272,87133.0,87124.0,0.12852659]
[1766763084646,0.07252,87146.0,87124.0,0.12852659]
[1766763084855,0.01147552,87142.0,87124.0,0.12852659]
[1766763085069,0.07252,87143.0,87102.0,0.01148079]
[1766763085217,0.07252,87143.0,87042.0,2.97477823]
[1766763085218,0.00055,87124.0,87090.0,0.66618144]
[1766763085419,0.00055,87124.0,87111.0,0.01164]
[1766763085625,0.07252,87118.0,87095.0,0.04596]
[1766763085821,0.07252,87116.0,87097.0,0.14016659]
[1766763085987,0.07252,87129.0,87116.0,0.000549]
[1766763086191,0.08416,87128.0,87111.0,0.12852659]
[1766763086493,0.08416,87127.0,87111.0,0.12852659]
[1766763086887,0.00035865,87127.0,87122.0,0.01147815]
[1766763087090,0.07252,87149.0,87127.0,0.000549]
[1766763087298,0.0002,87163.0,87140.0,0.11688659]
[1766763087496,0.0002,87163.0,87140.0,0.11699416]
[1766763087754,1.24e-06,87141.0,87140.0,0.11699416]
[1766763087954,0.0002,87163.0,87147.0,0.01147486]
[1766763088118,0.07252,87166.0,87158.0,0.0002]
[1766763088314,0.07252,87166.0,87154.0,0.12852659]
[1766763088520,0.01147025,87182.0,87148.0,0.01164]
[1766763088521,0.07252,87183.0,87166.0,0.000349]
[1766763088737,0.01164,87193.0,87166.0,0.000349]
[1766763088959,0.07252,87190.0,87172.0,0.12852659]
[1766763089164,0.00055,87172.0,87162.0,0.01164]
[1766763089338,0.00055,87172.0,87158.0,0.12852659]
[1766763089519,0.07252,87178.0,87159.0,0.01164]
[1766763090157,0.07252,87158.0,87121.0,0.12852659]
[1766763090359,0.07252,87158.0,87137.0,0.12852659]
[1766763090534,0.07252,87158.0,87144.0,0.01147525]
[1766763090737,0.01164,87165.0,87141.0,0.06885342]
[1766763090942,0.07252,87171.0,87165.0,0.000549]
[1766763091362,0.07252,87171.0,87166.0,0.12852659]
[1766763091864,0.07252,87171.0,87155.0,0.01147381]
[1766763092064,0.00010751,87178.0,87156.0,0.01147367]
[1766763092268,0.0004,87189.0,87166.0,0.13999895]
[1766763092473,0.08416,87188.0,87167.0,0.00059659]
[1766763092782,0.08416,87188.0,87166.0,0.00010751]
[1766763092783,0.00055,87167.0,87166.0,0.00010751]
[1766763092985,0.07252,87188.0,87166.0,0.00010751]
[1766763093183,0.0004,87189.0,87176.0,0.05735523]
[1766763093511,0.01146552,87218.0,87174.0,0.12852659]
[1766763093512,0.06867,87199.0,87189.0,0.0004]
[1766763093667,0.06867,87199.0,87178.0,0.01164]
[1766763093897,0.06867,87199.0,87189.0,0.12852659]
[1766763094096,0.08031,87199.0,87174.0,0.12852659]
[1766763094420,0.06867,87189.0,87174.0,0.12852659]
[1766763094631,0.000107,87174.0,87169.0,0.01164]
[1766763094847,0.06867,87187.0,87155.0,0.04592]
[1766763095083,0.08014157,87172.0,87139.0,0.04592]
[1766763095296,0.06867,87164.0,87140.0,0.01164]
[1766763095658,0.06867,87159.0,87140.0,0.01164]
[1766763096242,0.06867,87159.0,87139.0,0.00010757]
[1766763096444,0.06867,87149.0,87139.0,0.00010757]
[1766763096643,0.01164,87155.0,87149.0,0.000549]
[1766763097183,0.01164,87155.0,87140.0,0.12852659]
[1766763097184,0.01164,87163.0,87140.0,0.12852659]
[1766763097511,0.01,87198.0,87139.0,0.01174757]
[1766763097512,0.3953,87200.0,87141.0,0.12852659]
[1766763097720,0.08013933,87189.0,87163.0,0.000549]
[1766763097861,0.06867,87189.0,87163.0,0.000549]
[1766763098062,0.06867,87187.0,87162.0,0.08257665]
[1766763098264,0.06867,87187.0,87162.0,0.07110377]
[1766763099028,0.06867,87185.0,87162.0,0.07110377]
[1766763099989,0.06867,87185.0,87166.0,0.01147236]
[1766763100189,0.06867,87206.0,87176.0,0.12852659]
[1766763100410,0.04592,87207.0,87176.0,0.12852659]
[1766763100411,0.01164,87205.0,87176.0,0.12852659]
[1766763100589,0.06867,87199.0,87176.0,0.12852659]
[1766763101196,0.06877749,87199.0,87176.0,0.12852659]
[1766763101421,0.06877749,87199.0,87174.0,0.01164]
[1766763101422,0.01146854,87195.0,87174.0,0.01164]
[1766763101630,0.01146854,87195.0,87169.0,0.01164]
[1766763101631,0.06867,87189.0,87169.0,0.01164]
[1766763102237,0.06867,87189.0,87150.0,0.01147446]
[1766763102238,0.06867,87179.0,87163.0,0.01164]
[1766763102429,0.06867,87179.0,87169.0,0.12852659]
[1766763102612,0.01164,87190.0,87179.0,0.001099]
[1766763102846,0.01164,87189.0,87179.0,0.001099]
[1766763103046,0.01164,87189.0,87169.0,0.12852659]
[1766763103949,0.01164,87189.0,87155.0,0.1400004]
[1766763103950,0.06867,87179.0,87155.0,0.12852659]
[1766763104111,0.08031,87179.0,87161.0,0.01164]
[1766763104314,0.08031,87179.0,87157.0,0.01164]
[1766763104513,2.39e-06,87163.0,87157.0,0.01164]
[1766763104727,0.08031,87179.0,87157.0,0.01164]
[1766763105388,0.08031,87179.0,87060.0,0.20156288]
[1766763105389,0.07268,87169.0,87129.0,0.05739723]
[1766763105563,0.07268,87159.0,87142.0,0.12852659]
[1766763105769,0.01164,87168.0,87156.0,0.12852659]
[1766763105971,0.01164,87178.0,87168.0,0.000549]
[1766763106178,0.07268,87177.0,87153.0,0.01164]
[1766763106343,0.07268,87177.0,87161.0,0.01147302]
[1766763106545,0.01164,87179.0,87161.0,0.01147302]
[1766763106910,0.01174745,87179.0,87161.0,0.01164]
[1766763107223,0.00010745,87179.0,87161.0,0.01164]
[1766763107378,0.07268,87178.0,87161.0,0.01164]
[1766763107585,0.07268,87178.0,87150.0,0.01147446]
[1766763107767,0.07268,87178.0,87122.0,0.34434449]
[1766763107768,0.07268,87178.0,87157.0,0.12852659]
[1766763107965,0.07268,87169.0,87140.0,0.02311578]
[1766763108175,0.01164,87168.0,87147.0,0.12852659]
[1766763108571,0.07268,87182.0,87168.0,0.001099]
[1766763108808,0.01164,87180.0,87161.0,0.12852659]
[1766763109086,0.07268,87171.0,87140.0,0.01147578]
[1766763109299,0.07268,87171.0,87160.0,0.12852659]
[1766763109300,0.52474388,87171.0,87160.0,0.12852659]
[1766763109475,0.07268,87171.0,87160.0,0.12852659]
[1766763109670,0.07268,87171.0,87154.0,0.01164]
[1766763109845,0.07268,87171.0,87159.0,0.12852659]
[1766763110246,0.45206388,87170.0,87159.0,0.12852659]
[1766763110524,0.07268,87187.0,87170.0,0.000549]
[1766763110738,0.07106,87178.0,87170.0,0.000549]
[1766763111156,0.07106,87178.0,87154.0,0.01164]
[1766763111379,0.07106,87178.0,87162.0,0.12852659]
[1766763111602,0.07106,87178.0,87140.0,0.22951372]
[1766763111603,0.07106,87169.0,87150.0,0.01164]
[1766763111828,0.07106,87169.0,87156.0,0.12852659]